fUSD/lending_fUSD_20241018
["ID","MTS","AMOUNT","RATE_DAILY","PERIOD"]
[340435574,1729241485572,-1069.0,0.00045,120]
[340435575,1729241485583,-50000.0,0.00045,30]
[340435576,1729241485593,-500.0,0.00045,7]
[340435577,1729241485602,-293.50688294,0.00045,120]
[340435578,1729241485612,-25936.79061542,0.00045,70]
[340435579,1729241485623,-10000.0,0.00045,15]
[340435580,1729241485632,-80000.0,0.00045,120]
[340435581,1729241485642,-12020.28195229,0.00045,60]
[340435582,1729241485653,-786.0,0.00045,120]
[340435583,1729241485663,-2187.41,0.00045,60]
[340435584,1729241485674,-280.96940643,0.00045,120]
[340435585,1729241485683,-1488.90148947,0.00045,120]
[340435586,1729241485693,-2337.68,0.00045068,120]
[340435587,1729241485703,-150.101806,0.00045098,120]
[340435588,1729241485713,-150.101806,0.00045198,120]
[340435589,1729241485724,-50000.0,0.000452,120]
[340435590,1729241485734,-29099.08,0.00045205,120]
[340435591,1729241485745,-622.33,0.00045205,120]
[340435592,1729241485756,-540.95,0.00045205,120]
[340435593,1729241485765,-540.95,0.00045205,120]
[340435594,1729241485774,-244.57386259,0.00045205,90]
[340435595,1729241485784,-5000.0,0.00045205,60]
[340435596,1729241485794,-150.101806,0.00045298,120]
[340435597,1729241485804,-1556.65,0.00045393,120]
[340435598,1729241485814,-150.101806,0.00045398,120]
[340435599,1729241485824,-716.33,0.00045479,120]
[340435600,1729241485834,-29099.08,0.00045479,120]
[340435601,1729241485844,-622.33,0.00045479,120]
[340435602,1729241485854,-2337.68,0.00045479,120]
[340435603,1729241485863,-150.101806,0.00045498,120]
[340435604,1729241485873,-664.16,0.000455,120]
[340435605,1729241485883,-1000.0,0.00045579,120]
[340435606,1729241485892,-8618.87705667,0.00045589,60]
[340435607,1729241485901,-150.101806,0.00045598,120]
[340435608,1729241485911,-100000.0,0.000456,30]
[340435609,1729241485920,-1000.0,0.0004567,7]
[340435610,1729241485929,-1000.0,0.00045679,7]
[340435611,1729241485939,-1000.0,0.00045679,7]
[340435612,1729241485948,-1000.0,0.00045679,7]
[340435613,1729241485957,-1000.0,0.00045679,7]
[340435614,1729241485970,-150.0,0.00045697,120]
[340435615,1729241485980,-150.0,0.00045697,120]
[340435616,1729241485989,-150.0,0.00045697,120]
[340435617,1729241485999,-150.101806,0.00045698,120]
[340435618,1729241486009,-1431.39336145,0.000457,120]
[340435619,1729241486018,-50000.0,0.000457,120]
[340435620,1729241486029,-29099.08,0.00045753,120]
[340435621,1729241486039,-622.33,0.00045753,120]
[340435622,1729241486050,-205.101806,0.00045798,120]
[340435623,1729241486060,-3600.98,0.000458,60]
[340435624,1729241486069,-1367.94299195,0.000458,30]
[340435625,1729241486078,-2337.68,0.0004589,120]
[340435626,1729241486087,-12965.0,0.000459,30]
[340435627,1729241486097,-1002.48,0.0004592,88]
[340435628,1729241486106,-333.30478695,0.00045997,120]
[340435629,1729241486115,-10000.0,0.00045998,120]
[340435630,1729241486125,-1000.0,0.00045999,120]
[340435631,1729241486134,-50000.0,0.00046,46]
[340435632,1729241486143,-50000.0,0.00046,56]
[340435633,1729241486153,-400.0,0.00046,120]
[340435634,1729241486162,-314.93899858,0.00046,120]
[340435635,1729241486171,-684.68154459,0.00046,120]
[340435636,1729241486180,-1000.0,0.00046,30]
[340435637,1729241486189,-721.75898494,0.00046,30]
[340435638,1729241486198,-1000.0,0.00046,120]
[340435639,1729241486207,-50000.0,0.00046,120]
[340435640,1729241486217,-70000.0,0.00046,20]
[340435641,1729241486226,-1000.0,0.00046,120]
[340435642,1729241486235,-1000.0,0.00046,120]
[340435643,1729241486244,-1000.0,0.00046,120]
[340435644,1729241486253,-1000.0,0.00046,120]
[340435645,1729241486262,-1000.0,0.00046,120]
[340435646,1729241486271,-1000.0,0.00046,120]
[340435647,1729241486280,-150.0,0.00046,120]
[340435648,1729241486289,-336.51770558,0.00046,30]
[340435649,1729241486298,-30000.0,0.00046,30]
[340435650,1729241486307,-50000.0,0.00046,31]
[340435651,1729241486316,-2478.13,0.00046,120]
[340435652,1729241486326,-7701.68493527,0.00046,120]
[340435653,1729241486335,-80000.0,0.00046,120]
[340435654,1729241486344,-50000.0,0.00046,120]
[340435655,1729241486355,-900.0,0.00046,47]
[340435656,1729241486364,-6859.77544979,0.00046,120]
[340435657,1729241486373,-4926.12211664,0.00046,120]
[340435658,1729241486382,-11175.73658347,0.00046,120]
[340435659,1729241486391,-359.13,0.00046,120]
[340435660,1729241486400,-268.586368,0.00046,30]
[340435661,1729241486409,-716.33,0.00046027,120]
[340435662,1729241486418,-29099.08,0.00046027,120]
[340435663,1729241486427,-622.33,0.00046027,120]
[340435664,1729241486436,-454.0,0.00046028,2]
[340435665,1729241486445,-493.0,0.00046028,2]
[340435666,1729241486454,-593.0,0.00046028,2]
[340435667,1729241486463,-350.3668776,0.0004615,120]
[340435668,1729241486472,-2660.0,0.000462,60]
[340435669,1729241486481,-50000.0,0.000462,120]
[340435670,1729241486490,-1000.0,0.00046274,120]
[340435671,1729241486499,-592.31678164,0.000463,120]
[340435672,1729241486508,-29099.08,0.00046301,120]
[340435673,1729241486518,-622.33,0.00046301,120]
[340435674,1729241486527,-2337.68,0.00046301,120]
[340435675,1729241486536,-445.70232307,0.0004637,120]
[340435676,1729241486546,-1000.0,0.00046476,120]
[340435677,1729241486555,-412.0,0.00046486,90]
[340435678,1729241486563,-2500.0,0.00046498,7]
[340435679,1729241486572,-2008.0,0.000465,60]
[340435680,1729241486581,-450.3950876,0.000465,120]
[340435681,1729241486590,-1325.99151607,0.000465,120]
[340435682,1729241486599,-44847.8258964,0.000465,120]
[340435683,1729241486608,-150.0,0.000465,120]
[340435684,1729241486617,-481.61494884,0.00046542,120]
[340435685,1729241486627,-250.0,0.0004657,3]
[340435686,1729241486635,-315.51988605,0.0004657,3]
[340435687,1729241486645,-716.33,0.00046575,120]
[340435688,1729241486654,-29099.08,0.00046575,120]
[340435689,1729241486664,-622.33,0.00046575,120]
[340435690,1729241486673,-500.0,0.00046575,30]
[340435691,1729241486682,-500.0,0.00046575,30]
[340435692,1729241486691,-500.0,0.00046575,30]
[340435693,1729241486700,-500.0,0.00046575,30]
[340435694,1729241486709,-500.0,0.00046575,30]
[340435695,1729241486718,-543.69168085,0.00046575,30]
[340435696,1729241486728,-3792.43959382,0.00046575,14]
[340435697,1729241486737,-2846.65290766,0.00046575,60]
[340435698,1729241486746,-2000.0,0.000466,30]
[340435699,1729241486755,-50000.0,0.000467,120]
[340435700,1729241486764,-2337.68,0.00046712,120]
[340435701,1729241486774,-29099.08,0.00046849,120]
[340435702,1729241486783,-622.33,0.00046849,120]
[340435703,1729241486792,-1755.947165,0.00046875,95]
[340435704,1729241486801,-499999.4917244,0.0004688,30]
[340435705,1729241486811,-719.08684382,0.0004689,120]
[340435706,1729241486819,-550.43,0.0004693,2]
[340435707,1729241486830,-50000.0,0.00047,47]
[340435708,1729241486839,-50000.0,0.00047,57]
[340435709,1729241486849,-2014.61283636,0.00047,120]
[340435710,1729241486859,-300.0,0.00047,120]
[340435711,1729241486868,-10000.0,0.00047,120]
[340435712,1729241486956,-150.0,0.00047,120]
[340435713,1729241486974,-50000.0,0.00047,32]
[340435714,1729241486983,-254.56476423,0.00047,60]
[340435715,1729241486993,-4543.78490188,0.00047,120]
[340435716,1729241487002,-6586.49857462,0.00047,10]
[340435717,1729241487011,-1559.44047202,0.00047,30]
[340435718,1729241487020,-8618.87705667,0.00047089,60]
[340435719,1729241487031,-3000.0,0.000471,2]
[340435720,1729241487041,-150.0,0.00047115,30]
[340435721,1729241487050,-716.33,0.00047123,120]
[340435722,1729241487059,-29099.08,0.00047123,120]
[340435723,1729241487069,-622.33,0.00047123,120]
[340435724,1729241487078,-2337.68,0.00047123,120]
[340435725,1729241487087,-50000.0,0.000472,120]
[340435726,1729241487097,-40087.00000099,0.0004729,120]
[340435727,1729241487106,-1066158.19919444,0.000473,120]
[340435728,1729241487116,-1000.0,0.00047372,120]
[340435729,1729241487127,-29099.08,0.00047397,120]
[340435730,1729241487137,-622.33,0.00047397,120]
[340435731,1729241487148,-454.0,0.00047398,2]
[340435732,1729241487158,-493.0,0.00047398,2]
[340435733,1729241487169,-593.0,0.00047398,2]
[340435734,1729241487180,-150.40914423,0.0004748,115]
[340435735,1729241487191,-10000.0,0.00047498,90]
[340435736,1729241487201,-50000.0,0.000475,33]
[340435737,1729241487212,-161.547297,0.000475,120]
[340435738,1729241487222,-2337.68,0.00047534,120]
[340435739,1729241487233,-5165.06738503,0.000476,2]
[340435740,1729241487244,-716.33,0.00047671,120]
[340435741,1729241487254,-29099.08,0.00047671,120]
[340435742,1729241487264,-622.33,0.00047671,120]
[340435743,1729241487274,-2000.0,0.000477,120]
[340435744,1729241487284,-2000.0,0.000477,120]
[340435745,1729241487294,-465.0,0.000477,120]
[340435746,1729241487305,-50000.0,0.000477,120]
[340435747,1729241487315,-150.0,0.0004774,30]
[340435748,1729241487325,-27076.0,0.000478,120]
[340435749,1729241487336,-50000.0,0.0004783,120]
[340435750,1729241487346,-5000.0,0.0004789,120]
[340435751,1729241487357,-120206.0,0.000479,120]
[340435752,1729241487366,-29099.08,0.00047945,120]
[340435753,1729241487375,-622.33,0.00047945,120]
[340435754,1729241487385,-2337.68,0.00047945,120]
[340435755,1729241487395,-1556.65,0.00047977,120]
[340435756,1729241487405,-1000.0,0.00047999,120]
[340435757,1729241487416,-50000.0,0.00048,48]
[340435758,1729241487426,-50000.0,0.00048,58]
[340435759,1729241487435,-150.0,0.00048,90]
[340435760,1729241487445,-1745.37642687,0.00048,120]
[340435761,1729241487454,-415.0,0.00048,120]
[340435762,1729241487466,-20000.0,0.00048,120]
[340435763,1729241487476,-200.0,0.00048,120]
[340435764,1729241487485,-2472.27525062,0.00048,60]
[340435765,1729241487495,-10000.0,0.00048,120]
[340435766,1729241487505,-16219.42852766,0.00048,60]
[340435767,1729241487514,-1000.0,0.00048,120]
[340435768,1729241487524,-150.0,0.00048,120]
[340435769,1729241487534,-6492.01416286,0.00048,30]
[340435770,1729241487543,-50000.0,0.00048,35]
[340435771,1729241487553,-50000.0,0.00048,120]
[340435772,1729241487562,-6859.77544979,0.00048,120]
[340435773,1729241487571,-4926.12211662,0.00048,120]
[340435774,1729241487581,-10786.0,0.00048,120]
[340435775,1729241487590,-250.0,0.00048,30]
[340435776,1729241487600,-1700.0,0.000482,120]
[340435777,1729241487609,-50000.0,0.000482,120]
[340435778,1729241487619,-29099.08,0.00048219,120]
[340435779,1729241487629,-622.33,0.00048219,120]
[340435780,1729241487639,-50000.0,0.0004823,120]
[340435781,1729241487648,-1000.0,0.00048269,120]
[340435782,1729241487658,-10965.0,0.0004833,120]
[340435783,1729241487667,-16100.0,0.0004835,120]
[340435784,1729241487677,-2337.68,0.00048356,120]
[340435785,1729241487686,-6570.0,0.0004847,120]
[340435786,1729241487695,-50000.0,0.0004848,120]
[340435787,1729241487704,-29099.08,0.00048493,120]
[340435788,1729241487714,-622.33,0.00048493,120]
[340435789,1729241487723,-50000.0,0.000485,35]
[340435790,1729241487732,-8618.87705667,0.00048589,60]
[340435791,1729241487742,-10974.73226762,0.000487,120]
[340435792,1729241487751,-50000.0,0.000487,120]
[340435793,1729241487762,-716.33,0.00048767,120]
[340435794,1729241487771,-29099.08,0.00048767,120]
[340435795,1729241487781,-622.33,0.00048767,120]
[340435796,1729241487791,-2337.68,0.00048767,120]
[340435797,1729241487800,-454.0,0.00048768,2]
[340435798,1729241487809,-493.0,0.00048768,2]
[340435799,1729241487819,-593.0,0.00048768,2]
[340435800,1729241487828,-1000.0,0.00048784,120]
[340435801,1729241487837,-5000.0,0.000488,60]
[340435802,1729241487846,-5000.0,0.000488,60]
[340435803,1729241487856,-1505.69385237,0.000488,120]
[340435804,1729241487865,-30709.8074135,0.000488,120]
[340435805,1729241487875,-2051.46092555,0.000488,90]
[340435806,1729241487884,-16568.0,0.0004888,120]
[340435807,1729241487893,-31005.75,0.0004888,120]
[340435808,1729241487903,-6559.33669599,0.0004888,30]
[340435809,1729241487913,-1140.98268796,0.000489,120]
[340435810,1729241487923,-343.40167444,0.000489,120]
[340435811,1729241487932,-316.65287757,0.000489,120]
[340435812,1729241487942,-50000.0,0.0004892,120]
[340435813,1729241487952,-6421.04777703,0.0004899,14]
[340435814,1729241487961,-50000.0,0.00049,49]
[340435815,1729241487973,-50000.0,0.00049,59]
[340435816,1729241487982,-21534.86599762,0.00049,2]
[340435817,1729241487991,-735.3935521,0.00049,30]
[340435818,1729241488001,-300.0,0.00049,120]
[340435819,1729241488011,-1098.0,0.00049,90]
[340435820,1729241488022,-319.0,0.00049,120]
[340435821,1729241488031,-20000.0,0.00049,120]
[340435822,1729241488042,-10653.0,0.00049,120]
[340435823,1729241488053,-500.0,0.00049,120]
[340435824,1729241488062,-30199.63534603,0.00049,60]
[340435825,1729241488071,-2638.03763847,0.00049,120]
[340435826,1729241488080,-8474.59038934,0.00049,120]
[340435827,1729241488089,-150.0,0.00049,120]
[340435828,1729241488099,-5000.0,0.00049,120]
[340435829,1729241488110,-209320.50411926,0.00049,120]
[340435830,1729241488119,-4309.85892228,0.00049,120]
[340435831,1729241488128,-805.01887101,0.00049,60]
[340435832,1729241488137,-443.5490729,0.00049,60]
[340435833,1729241488147,-158.03413903,0.00049,120]
[340435834,1729241488157,-29099.08,0.00049041,120]
[340435835,1729241488166,-622.33,0.00049041,120]
[340435836,1729241488176,-1000.0,0.00049166,120]
[340435837,1729241488186,-2337.68,0.00049178,120]
[340435838,1729241488195,-550.43,0.00049194,2]
[340435839,1729241488205,-593666.53363575,0.000493,120]
[340435840,1729241488214,-150.0,0.00049315,120]
[340435841,1729241488225,-716.33,0.00049315,120]
[340435842,1729241488234,-29099.08,0.00049315,120]
[340435843,1729241488244,-622.33,0.00049315,120]
[340435844,1729241488253,-296.53241633,0.00049315,120]
[340435845,1729241488262,-1432.23,0.00049315,120]
[340435846,1729241488271,-1432.23,0.00049315,120]
[340435847,1729241488280,-1432.23,0.00049315,120]
[340435848,1729241488289,-1432.23,0.00049315,120]
[340435849,1729241488299,-1432.23,0.00049315,120]
[340435850,1729241488307,-1432.23,0.00049315,120]
[340435851,1729241488317,-1432.23,0.00049315,120]
[340435852,1729241488327,-1432.23,0.00049315,120]
[340435853,1729241488336,-1432.23,0.00049315,120]
[340435854,1729241488345,-1432.23,0.00049315,120]
[340435855,1729241488357,-1432.23,0.00049315,120]
[340435856,1729241488366,-1432.23,0.00049315,120]
[340435857,1729241488375,-1432.23,0.00049315,120]
[340435858,1729241488384,-1432.23,0.00049315,120]
[340435859,1729241488393,-1432.23,0.00049315,120]
[340435860,1729241488403,-1432.23,0.00049315,120]
[340435861,1729241488412,-1432.23,0.00049315,120]
[340435862,1729241488421,-1432.23,0.00049315,120]
[340435863,1729241488431,-1432.23,0.00049315,120]
[340435864,1729241488440,-1432.23,0.00049315,120]
[340435865,1729241488450,-1432.23,0.00049315,120]
[340435866,1729241488459,-1432.23,0.00049315,120]
[340435867,1729241488469,-1432.23,0.00049315,120]
[340435868,1729241488479,-1432.41473432,0.00049315,120]
[340435869,1729241488488,-3900.0,0.00049315,120]
[340435870,1729241488498,-3900.0,0.00049315,120]
[340435871,1729241488507,-3900.0,0.00049315,120]
[340435872,1729241488516,-3900.0,0.00049315,120]
[340435873,1729241488526,-3900.0,0.00049315,120]
[340435874,1729241488535,-3900.0,0.00049315,120]
[340435875,1729241488635,-3900.0,0.00049315,120]
[340435876,1729241488644,-3900.0,0.00049315,120]
[340435877,1729241488654,-3900.0,0.00049315,120]
[340435878,1729241488663,-3900.0,0.00049315,120]
[340435879,1729241488672,-3900.0,0.00049315,120]
[340435880,1729241488681,-3900.0,0.00049315,120]
[340435881,1729241488690,-3900.0,0.00049315,120]
[340435882,1729241488700,-3900.0,0.00049315,120]
[340435883,1729241488709,-3900.0,0.00049315,120]
[340435884,1729241488719,-3900.0,0.00049315,120]
[340435885,1729241488729,-1368.26631983,0.00049315,120]
[340435886,1729241488738,-600.0,0.00049315,24]
[340435887,1729241488748,-153552.79,0.00049315,60]
[340435888,1729241488758,-50000.0,0.0004933,120]
[340435889,1729241488768,-14161.0,0.0004944,30]
[340435890,1729241488777,-50000.0,0.0004949,120]
[340435891,1729241488787,-170920.33967041,0.000495,120]
[340435892,1729241488797,-10048.20439738,0.000495,120]
[340435893,1729241488807,-2695.12411856,0.000495,50]
[340435894,1729241488817,-1849.0,0.000495,120]
[340435895,1729241488827,-29099.08,0.00049589,120]
[340435896,1729241488837,-622.33,0.00049589,120]
[340435897,1729241488846,-2337.68,0.00049589,120]
[340435898,1729241488857,-23096.10976844,0.000496,120]
[340435899,1729241488866,-5934.52,0.0004965,120]
[340435900,1729241488876,-40203.0,0.0004965,120]
[340435901,1729241488886,-1096808.67,0.0004969,120]
[340435902,1729241488896,-50000.0,0.000497,120]
[340435903,1729241488905,-15000.0,0.0004978,30]
[340435904,1729241488915,-15000.0,0.0004978,30]
[340435905,1729241488925,-42107.0148387,0.000498,30]
[340435906,1729241490483,-358.08058976,0.00041095,120]
[340435907,1729241490495,-3151.68941024,0.00041095,120]
[340435908,1729241490504,-76644.28197616,0.000498,30]
[340435909,1729241490516,-716.33,0.00049863,120]
[340435910,1729241490526,-29099.08,0.00049863,120]
[340435911,1729241490536,-622.33,0.00049863,120]
[340435912,1729241490547,-154.52913165,0.000499,60]
[340435913,1729241490556,-797.24215388,0.000499,120]
[340435914,1729241490565,-426.71244083,0.000499,120]
[340435915,1729241490655,-208.0,0.0003,2]
[340435916,1729241490666,-178.61996913,0.00033,2]
[340435917,1729241490679,-29.38003087,0.00033,2]
[340435918,1729241490688,-208.0,0.00036,2]
[340435919,1729241490700,-20.57926913,0.00039,2]
[340435920,1729241490714,-187.42073087,0.00039,2]
[340435921,1729241490725,-269.46156909,0.00041095,120]
[340435922,1729241491229,-230.48,0.00010959,2]
[340435923,1729241491239,-3240.30843091,0.00041095,120]
[340435924,1729241491248,-3509.77,0.00041095,120]
[340435925,1729241491257,-3509.77,0.00041095,120]
[340435926,1729241491267,-3509.77,0.00041095,120]
[340435927,1729241491276,-3509.77,0.00041095,120]
[340435928,1729241491285,-3509.77,0.00041095,120]
[340435929,1729241491294,-208.0,0.00042,2]
[340435930,1729241491303,-2111513.97219199,0.000499,120]
[340435931,1729241491313,-3000.0,0.000499,2]
[340435932,1729241491322,-412.0,0.00049986,120]
[340435933,1729241491331,-1000.0,0.00049999,120]
[340435934,1729241491340,-50000.0,0.0005,50]
[340435935,1729241491350,-50000.0,0.0005,60]
[340435936,1729241491359,-1124.71373069,0.0005,2]
[340435937,1729241491368,-479.05719347,0.0005,120]
[340435938,1729241491377,-1000.0,0.0005,120]
[340435939,1729241491387,-2955.5759626,0.0005,120]
[340435940,1729241491396,-20000.0,0.0005,30]
[340435941,1729241491406,-5104.0,0.0005,120]
[340435942,1729241491415,-5000.0,0.0005,120]
[340435943,1729241491424,-900.8,0.0005,120]
[340435944,1729241491433,-150.0,0.0005,120]
[340435945,1729241491443,-197.0926,0.0005,30]
[340435946,1729241491452,-20000.0,0.0005,120]
[340435947,1729241491461,-200.34901048,0.0005,60]
[340435948,1729241491470,-5000.0,0.0005,30]
[340435949,1729241491479,-1201130.43885856,0.0005,120]
[340435950,1729241491489,-177202.63449197,0.0005,120]
[340435951,1729241491499,-500000.0,0.0005,120]
[340435952,1729241491509,-15181.70991807,0.0005,120]
[340435953,1729241491518,-20000.0,0.0005,120]
[340435954,1729241491527,-1000.0059474,0.0005,120]
[340435955,1729241491536,-100000.0,0.0005,30]
[340435956,1729241491545,-1839.93045455,0.0005,120]
[340435957,1729241491554,-1500.0,0.0005,30]
[340435958,1729241491563,-150.0,0.0005,120]
[340435959,1729241491572,-5000.0,0.0005,120]
[340435960,1729241491582,-1461532.50569739,0.0005,120]
[340435961,1729241491591,-7172.57541612,0.0005,14]
[340435962,1729241491600,-50000.0,0.0005,120]
[340435963,1729241491609,-2830.79433969,0.0005,120]
[340435964,1729241491618,-1624.47247086,0.0005,30]
[340435965,1729241491627,-32797.0,0.0005,14]
[340435966,1729241491636,-794.58720202,0.0005,120]
[340435967,1729241491646,-250.0,0.0005,30]
[340435968,1729241491657,-2337.68,0.0005,120]
[340435969,1729241491667,-1000.0,0.00050062,120]
[340435970,1729241491962,-8618.87705667,0.00050089,60]
[340435971,1729241491977,-29099.2415251,0.00050136,120]
[340435972,1729241491986,-622.47093781,0.00050136,120]
[340435973,1729241491995,-454.0,0.00050137,2]
[340435974,1729241492005,-493.0,0.00050137,2]
[340435975,1729241492015,-593.0,0.00050137,2]
[340435976,1729241492024,-716.33,0.0005041,120]
[340435977,1729241492033,-2337.68,0.0005041,120]
[340435978,1729241492043,-1319.71652537,0.00050498,62]
[340435979,1729241492053,-1556.65,0.00050561,120]
[340435980,1729241492063,-2000.0,0.000507,30]
[340435981,1729241492074,-50000.0,0.000507,120]
[340435982,1729241492083,-297.17,0.00050757,2]
[340435983,1729241492093,-247.06,0.00050757,2]
[340435984,1729241492102,-297.50837547,0.000508,120]
[340435985,1729241492116,-2337.68,0.00050821,120]
[340435986,1729241492125,-150.0,0.0005087,30]
[340435987,1729241492134,-4473.60666136,0.0005088,30]
[340435988,1729241492143,-716.45930704,0.00050958,120]
[340435989,1729241492152,-1349.13044044,0.00050959,120]
[340435990,1729241492161,-1000.0,0.00050999,120]
[340435991,1729241492170,-50000.0,0.00051,51]
[340435992,1729241492179,-50000.0,0.00051,61]
[340435993,1729241492188,-128238.43308024,0.00051,120]
[340435994,1729241492197,-300.0,0.00051,120]
[340435995,1729241492206,-20000.0,0.00051,120]
[340435996,1729241492215,-61044.16984186,0.00051,120]
[340435997,1729241492224,-150.0,0.00051,120]
[340435998,1729241492233,-50000.0,0.00051,120]
[340435999,1729241492242,-50000.0,0.0005104,120]
[340436000,1729241492251,-2337.68,0.00051232,120]
[340436001,1729241492261,-550.43,0.00051458,2]
[340436002,1729241492270,-493.40467049,0.000515,2]
[340436003,1729241492279,-454.0,0.00051507,2]
[340436004,1729241492288,-493.0,0.00051507,2]
[340436005,1729241492297,-593.0,0.00051507,2]
[340436006,1729241492306,-185.37,0.0005153,120]
[340436007,1729241492315,-8618.87705667,0.00051589,60]
[340436008,1729241492324,-2337.68,0.00051643,120]
[340436009,1729241492333,-50000.0,0.000517,120]
[340436010,1729241492342,-553.50458517,0.000519,31]
[340436011,1729241492351,-4412.1,0.00051953,117]
[340436012,1729241492362,-1000.0,0.00051999,120]
[340436013,1729241492371,-50000.0,0.00052,52]
[340436014,1729241492379,-50000.0,0.00052,62]
[340436015,1729241492389,-300.0,0.00052,120]
[340436016,1729241492397,-300.0,0.00052,120]
[340436017,1729241492407,-150.0,0.00052,120]
[340436018,1729241492418,-151.0,0.00052,120]
[340436019,1729241492427,-20000.0,0.00052,120]
[340436020,1729241492437,-103450.64624404,0.00052,120]
[340436021,1729241492448,-151.0,0.00052,120]
[340436022,1729241492457,-2668.04018777,0.00052,120]
[340436023,1729241492466,-50000.0,0.00052,120]
[340436024,1729241492476,-1091.07,0.00052054,30]
[340436025,1729241492486,-1091.07,0.00052054,30]
[340436026,1729241492496,-1091.07,0.00052054,30]
[340436027,1729241492506,-1091.07,0.00052054,30]
[340436028,1729241492516,-1091.07,0.00052054,30]
[340436029,1729241492526,-1091.07,0.00052054,30]
[340436030,1729241492535,-1091.07,0.00052054,30]
[340436031,1729241492544,-1091.07,0.00052054,30]
[340436032,1729241492554,-1091.07,0.00052054,30]
[340436033,1729241492563,-1091.07,0.00052054,30]
[340436034,1729241492572,-1091.07,0.00052054,30]
[340436035,1729241492581,-1091.07,0.00052054,30]
[340436036,1729241492590,-1091.07,0.00052054,30]
[340436037,1729241492599,-1091.07,0.00052054,30]
[340436038,1729241492609,-1091.07,0.00052054,30]
[340436039,1729241492619,-1091.07,0.00052054,30]
[340436040,1729241492629,-1091.07,0.00052054,30]
[340436041,1729241492638,-1091.07,0.00052054,30]
[340436042,1729241492647,-1091.07,0.00052054,30]
[340436043,1729241492656,-1091.07,0.00052054,30]
[340436044,1729241492666,-1091.07,0.00052054,30]
[340436045,1729241492676,-1091.07,0.00052054,30]
[340436046,1729241492685,-1091.07,0.00052054,30]
[340436047,1729241492694,-1091.13562143,0.00052054,30]
[340436048,1729241492704,-2337.68,0.00052054,120]
[340436049,1729241492713,-260803.9,0.00052055,120]
[340436050,1729241492722,-2337.68,0.00052465,120]
[340436051,1729241492732,-5000.0,0.000525,120]
[340436052,1729241492741,-151.0,0.00052548,120]
[340436053,1729241492750,-3000.0,0.000526,2]
[340436054,1729241492759,-50000.0,0.000527,120]
[340436055,1729241492768,-15000.0,0.0005278,30]
[340436056,1729241492778,-1171.48550459,0.000528,120]
[340436057,1729241492787,-1093.09778471,0.000528,120]
[340436058,1729241492797,-2337.68,0.00052876,120]
[340436059,1729241492807,-454.0,0.00052877,2]
[340436060,1729241492815,-493.0,0.00052877,2]
[340436061,1729241492825,-593.0,0.00052877,2]
[340436062,1729241492834,-2247.9142847,0.0005288,30]
[340436063,1729241492844,-1000.0,0.00052999,120]
[340436064,1729241492853,-50000.0,0.00053,53]
[340436065,1729241492862,-50000.0,0.00053,63]
[340436066,1729241492871,-570.39986651,0.00053,2]
[340436067,1729241492881,-200.0,0.00053,120]
[340436068,1729241492890,-628.14269082,0.00053,120]
[340436069,1729241492900,-150.0,0.00053,120]
[340436070,1729241492909,-300.0,0.00053,120]
[340436071,1729241492919,-20000.0,0.00053,120]
[340436072,1729241492928,-200.0,0.00053,120]
[340436073,1729241492937,-10000.0,0.00053,14]